Body,Body Name,Date,TransNo,Amount � (Excl VAT),Supplier name,Description,Expense Area,Expense Type,Expense Code,
http://opendatacommunities.org/id/london-borough-council/sutton,London Borough of Sutton,06/09/2019,1282592,71.66 , AMAZON.CO.UK MA1FN9PT4,TOYS & EQUIPMENT,Peoples Services Directorate,Education Equipment,F009,
http://opendatacommunities.org/id/london-borough-council/sutton,London Borough of Sutton,05/09/2019,1282592,33.28 , BAKER ROSS,TOYS & EQUIPMENT,Peoples Services Directorate,Education Equipment,F009,
http://opendatacommunities.org/id/london-borough-council/sutton,London Borough of Sutton,12/09/2019,1282592,6.00 , WILKO RETAIL LIMIT,TOYS & EQUIPMENT,Peoples Services Directorate,Education Equipment,F009,
http://opendatacommunities.org/id/london-borough-council/sutton,London Borough of Sutton,09/09/2019,1282592,51.38 , W M MORRISONS.COM,GROCERY SHOP,Peoples Services Directorate,Provisions - General,F150,
http://opendatacommunities.org/id/london-borough-council/sutton,London Borough of Sutton,09/09/2019,1282592,126.56 , W M MORRISONS.COM,GROCERY SHOP,Peoples Services Directorate,Refreshments,F155,
http://opendatacommunities.org/id/london-borough-council/sutton,London Borough of Sutton,23/09/2019,1282592,69.31 , W M MORRISONS.COM,GROCERY SHOP,Peoples Services Directorate,Refreshments,F155,
http://opendatacommunities.org/id/london-borough-council/sutton,London Borough of Sutton,04/09/2019,1282592,13.87 , WM MORRISONS STORE,GROCERY SHOP,Peoples Services Directorate,Residents/Clients Clothing,F182,
http://opendatacommunities.org/id/london-borough-council/sutton,London Borough of Sutton,28/08/2019,1282592,56.81 , ASDA SUPERSTORE,GROCERY SHOP,Peoples Services Directorate,Residents/Clients Clothing,F182,
http://opendatacommunities.org/id/london-borough-council/sutton,London Borough of Sutton,17/09/2019,1282592,24.95 , AMZNMKTPLACE,SPLIT - PROGEN HEAVY DUTY HOME MECHANIC BIKE BICYCLE CYCLE WORKSTAND REPAIR STAND (100%),Peoples Services Directorate,Personal Requisites,F106,
http://opendatacommunities.org/id/london-borough-council/sutton,London Borough of Sutton,21/09/2019,1282592,40.00 , OYSTER AUTO-TOP UP,OYSTER TOP UP,Peoples Services Directorate,Staff Travelling Expenses,E130,
http://opendatacommunities.org/id/london-borough-council/sutton,London Borough of Sutton,23/09/2019,1282592,8.95 , WM MORRISONS STORE,GOVERNORS MEETING REFRESHMENTS,Peoples Services Directorate,Refreshments,F155,
http://opendatacommunities.org/id/london-borough-council/sutton,London Borough of Sutton,24/09/2019,1282592,500.00 , LOYD 49-53 HIGH ST,CASH FOR REFUNDS TO LEARNERS PAYING BY CASH,Peoples Services Directorate,General Office Expenses,F235,
http://opendatacommunities.org/id/london-borough-council/sutton,London Borough of Sutton,25/09/2019,1282592,12.50 , LOYD 49-53 HIGH ST,CASH WITHDRAWAL CHARGE,Peoples Services Directorate,Fees - Other,F299,
http://opendatacommunities.org/id/london-borough-council/sutton,London Borough of Sutton,18/09/2019,1282592,20.00 , OYSTER AUTO-TOP UP,OYSTER 071128679984 -IT(A EAYRS) TOPUP,Peoples Services Directorate,Travelling and Subsistence Allowances,A530,
http://opendatacommunities.org/id/london-borough-council/sutton,London Borough of Sutton,25/09/2019,1282592,2.61 , LOYD 49-53 HIGH ST,ONLINE TRAINING FOR THE IT TEAM,Peoples Services Directorate,Miscellaneous Training Courses,F304,
http://opendatacommunities.org/id/london-borough-council/sutton,London Borough of Sutton,23/09/2019,1282592,118.00 , CBT NUGGETS LLC,SPLIT - IT_PREMIUM (124.15%),Peoples Services Directorate,Miscellaneous Training Courses,F304,
http://opendatacommunities.org/id/london-borough-council/sutton,London Borough of Sutton,23/09/2019,1282592,(22.95), CBT NUGGETS LLC,BALANCING ENTRY AMOUNT (-72.45%),Peoples Services Directorate,Miscellaneous Training Courses,F304,
http://opendatacommunities.org/id/london-borough-council/sutton,London Borough of Sutton,02/09/2019,1282592,18.31 , AMAZON.CO.UK MA7HQ3014,HP INK CARTRIDGES BLACK AND TRI-COLOUR X 2,Peoples Services Directorate,Purchase of IT Equipment,F380,
http://opendatacommunities.org/id/london-borough-council/sutton,London Borough of Sutton,23/09/2019,1282592,2.64 , hoo hootsuite inc,hootsuite annual subscription  - exchange fee,Peoples Services Directorate,Advertising/Publicity (non Staff),F240,
http://opendatacommunities.org/id/london-borough-council/sutton,London Borough of Sutton,20/09/2019,1282592,96.18 , HOO HOOTSUITE INC,HOOTSUITE ANNUAL SUBSCRIPTION,Peoples Services Directorate,Advertising/Publicity (non Staff),F240,
http://opendatacommunities.org/id/london-borough-council/sutton,London Borough of Sutton,18/09/2019,1282592,20.00 , THE FLOWER POCKET,MARKETING EVENT ON SUTTON HIGH STREET ON 7/9/19,Peoples Services Directorate,Advertising/Publicity (non Staff),F240,
http://opendatacommunities.org/id/london-borough-council/sutton,London Borough of Sutton,07/09/2019,1282592,149.90 , LINKEDIN-406 3720126,"LEARNING PREMIUM SUBSCRIPTION RENEWAL (ANNUAL) FROM SEPTEMBER 7, 2019 TO SEPTEMBER 7, 2020",Peoples Services Directorate,Subscriptions - General,F450,
http://opendatacommunities.org/id/london-borough-council/sutton,London Borough of Sutton,30/08/2019,1282592,62.09 , MAILCHIMP    MONTHLY,MONTHLY CHARGE,Peoples Services Directorate,Subscriptions - General,F450,
http://opendatacommunities.org/id/london-borough-council/sutton,London Borough of Sutton,13/09/2019,1282592,82.25 , SCREWFIX DIRECT,ERA SASH STOPS SAT CHR,Peoples Services Directorate,General Maintenance,D500,
http://opendatacommunities.org/id/london-borough-council/sutton,London Borough of Sutton,16/09/2019,1282592,154.50 , TVLICENSING.CO.UK,TV LICENCE NUMBER 2819870806 FOR WALLINGTON CENTRE,Peoples Services Directorate,Administrative Equipment,F001,
http://opendatacommunities.org/id/london-borough-council/sutton,London Borough of Sutton,28/08/2019,1282592,24.99 , WWW.LABELS4U.CO.UK,500 PACK 4 PAGE LABELS,Peoples Services Directorate,Stationery,F220,
http://opendatacommunities.org/id/london-borough-council/sutton,London Borough of Sutton,21/09/2019,1282592,51.96 , DIRECTSPORTS-ESHOP,SHUTTLECOCKS ORDER NOT PROVIDED,Peoples Services Directorate,Education Equipment,F009,
http://opendatacommunities.org/id/london-borough-council/sutton,London Borough of Sutton,17/09/2019,1282592,267.25 , METAL SHEETS,NATURAL COPPER .7MM X50; NATURAL COPPER .9MM X25,Peoples Services Directorate,Education Equipment,F009,
http://opendatacommunities.org/id/london-borough-council/sutton,London Borough of Sutton,11/09/2019,1282592,35.99 , WWW.INSTANTPRINT.C,SUTTON COLLEGE ART & CRAFT DEPT BANNER INSTANTPRINT,Peoples Services Directorate,Education Equipment,F009,
http://opendatacommunities.org/id/london-borough-council/sutton,London Borough of Sutton,16/09/2019,1282592,15.43 , MELBOURNE NURSERY,C&G L2 FLORISTRY FRESH DEMO MATERIALS,Peoples Services Directorate,Education Equipment,F009,
http://opendatacommunities.org/id/london-borough-council/sutton,London Borough of Sutton,16/09/2019,1282592,15.00 , MELBOURNE NURSERY,C&G L2 AND L3 FLORISTRY BOX OF BASING PINS,Peoples Services Directorate,Education Equipment,F009,
http://opendatacommunities.org/id/london-borough-council/sutton,London Borough of Sutton,10/09/2019,1282592,201.49 , I.S.SUNDRIES LIMITED,C&G L2 SUNDRIES FLORISTRY,Peoples Services Directorate,Education Equipment,F009,
http://opendatacommunities.org/id/london-borough-council/sutton,London Borough of Sutton,23/09/2019,1282592,10.10 , MELBOURNE NURSERY,C&G L2 FLORISTRY FRESH DEMO MATERIALS,Peoples Services Directorate,Education Equipment,F009,
http://opendatacommunities.org/id/london-borough-council/sutton,London Borough of Sutton,23/09/2019,1282592,20.00 , MELBOURNE NURSERY,C&G L3 FLORISTRY FRESH DEMO MATERIALS,Peoples Services Directorate,Education Equipment,F009,
http://opendatacommunities.org/id/london-borough-council/sutton,London Borough of Sutton,16/09/2019,1282592,4.44 , LIDL GB LONDON,C&G L2 FLORISTRY FRESH DEMO MATERIALS,Peoples Services Directorate,Education Equipment,F009,
http://opendatacommunities.org/id/london-borough-council/sutton,London Borough of Sutton,24/09/2019,1282592,3.90 , WILKO RETAIL LIMIT,COOKERY MATERIALS,Peoples Services Directorate,Education Equipment,F009,
http://opendatacommunities.org/id/london-borough-council/sutton,London Borough of Sutton,23/09/2019,1282592,19.25 , LIDL GB LONDON,COOKERY MATERIALS,Peoples Services Directorate,Education Equipment,F009,
http://opendatacommunities.org/id/london-borough-council/sutton,London Borough of Sutton,19/09/2019,1282592,16.67 , OYSTER AUTO-TOP UP,TRAVEL,Peoples Services Directorate,Travelling and Subsistence Allowances,A530,
http://opendatacommunities.org/id/london-borough-council/sutton,London Borough of Sutton,07/09/2019,1282592,16.67 , OYSTER AUTO-TOP UP,TRAVEL,Peoples Services Directorate,Travelling and Subsistence Allowances,A530,
http://opendatacommunities.org/id/london-borough-council/sutton,London Borough of Sutton,02/09/2019,1282592,20.00 , OYSTER AUTO-TOP UP,20.00 AUTO TOP UP - A530 0301 9999 -,Peoples Services Directorate,Travelling and Subsistence Allowances,A530,
http://opendatacommunities.org/id/london-borough-council/sutton,London Borough of Sutton,22/09/2019,1282592,20.00 , OYSTER AUTO-TOP UP,20.00 AUTO TOP UP - A530 0301 9999,Peoples Services Directorate,Travelling and Subsistence Allowances,A530,
http://opendatacommunities.org/id/london-borough-council/sutton,London Borough of Sutton,10/09/2019,1282592,10.00 , OYSTER ONLINE,20.00 AUTO TOP UP - A530 0301 9999 -,Peoples Services Directorate,Travelling and Subsistence Allowances,A530,
http://opendatacommunities.org/id/london-borough-council/sutton,London Borough of Sutton,08/09/2019,1282592,20.00 , OYSTER AUTO-TOP UP,20.00 AUTO TOP UP - A530 0301 9999 -,Peoples Services Directorate,Travelling and Subsistence Allowances,A530,
http://opendatacommunities.org/id/london-borough-council/sutton,London Borough of Sutton,05/09/2019,1282592,20.00 , OYSTER AUTO-TOP UP,20.00 AUTO TOP UP - A530 0301 9999,Peoples Services Directorate,Travelling and Subsistence Allowances,A530,
http://opendatacommunities.org/id/london-borough-council/sutton,London Borough of Sutton,19/09/2019,1282592,20.00 , OYSTER AUTO-TOP UP,20.00 AUTO TOP UP - A530 0301 9999 -,Peoples Services Directorate,Travelling and Subsistence Allowances,A530,
http://opendatacommunities.org/id/london-borough-council/sutton,London Borough of Sutton,13/09/2019,1282592,20.00 , OYSTER AUTO-TOP UP,20.00 - A530 0301 9999,Peoples Services Directorate,Travelling and Subsistence Allowances,A530,
http://opendatacommunities.org/id/london-borough-council/sutton,London Borough of Sutton,12/09/2019,1282592,20.00 , OYSTER AUTO-TOP UP,20.00 AUTO TOP UP - A530 0301 9999,Peoples Services Directorate,Travelling and Subsistence Allowances,A530,
http://opendatacommunities.org/id/london-borough-council/sutton,London Borough of Sutton,11/09/2019,1282592,20.00 , OYSTER AUTO-TOP UP,20.00 - A530 0301 9999 - OYSTER TOP UP,Peoples Services Directorate,Travelling and Subsistence Allowances,A530,
http://opendatacommunities.org/id/london-borough-council/sutton,London Borough of Sutton,11/09/2019,1282592,20.00 , OYSTER AUTO-TOP UP,20.00 AUTO TOP UP - A530 0301 9999,Peoples Services Directorate,Travelling and Subsistence Allowances,A530,
http://opendatacommunities.org/id/london-borough-council/sutton,London Borough of Sutton,14/09/2019,1282592,20.00 , OYSTER AUTO-TOP UP,20.00 - OYSTER TOP,Peoples Services Directorate,Travelling and Subsistence Allowances,A530,
http://opendatacommunities.org/id/london-borough-council/sutton,London Borough of Sutton,03/09/2019,1282592,41.84 , WWW.LABEEBY.CO.UK,TRAINING EQUIPMENT,Peoples Services Directorate,Training Equipment-Pchase,F002,
http://opendatacommunities.org/id/london-borough-council/sutton,London Borough of Sutton,03/09/2019,1282592,268.00 , BANBURY POSTICHE LTD,TRAINING EQUIPMENT,Peoples Services Directorate,Training Equipment-Pchase,F002,
http://opendatacommunities.org/id/london-borough-council/sutton,London Borough of Sutton,11/09/2019,1282592,154.50 , TVLICENSING.CO.UK,,Peoples Services Directorate,Personal Requisites,F106,
http://opendatacommunities.org/id/london-borough-council/sutton,London Borough of Sutton,25/09/2019,1282592,3.99 , SUBWAY,AO ACT,Peoples Services Directorate,Personal Requisites,F106,
http://opendatacommunities.org/id/london-borough-council/sutton,London Borough of Sutton,23/09/2019,1282592,14.77 , B AND B STORE,JD GROCERIES,Peoples Services Directorate,Personal Requisites,F106,
http://opendatacommunities.org/id/london-borough-council/sutton,London Borough of Sutton,21/09/2019,1282592,35.00 , H S PRINTING AND COMPU,JC PHONE,Peoples Services Directorate,Personal Requisites,F106,
http://opendatacommunities.org/id/london-borough-council/sutton,London Borough of Sutton,19/09/2019,1282592,26.12 , LIDL GB LONDON,LC FOOD,Peoples Services Directorate,Personal Requisites,F106,
http://opendatacommunities.org/id/london-borough-council/sutton,London Borough of Sutton,17/09/2019,1282592,4.00 , MITIE HEALTHCARE,KP ACT HOSP,Peoples Services Directorate,Personal Requisites,F106,
http://opendatacommunities.org/id/london-borough-council/sutton,London Borough of Sutton,17/09/2019,1282592,22.50 , SAINSBURYS SACAT 0052,KP BABY,Peoples Services Directorate,Personal Requisites,F106,
http://opendatacommunities.org/id/london-borough-council/sutton,London Borough of Sutton,16/09/2019,1282592,21.37 , PPOINT_ SPARKS FOOD &,JC FOOD,Peoples Services Directorate,Personal Requisites,F106,
http://opendatacommunities.org/id/london-borough-council/sutton,London Borough of Sutton,15/09/2019,1282592,11.58 , PPOINT_ MICHAEL'S STOR,LIFE SKILLS,Peoples Services Directorate,Personal Requisites,F106,
http://opendatacommunities.org/id/london-borough-council/sutton,London Borough of Sutton,15/09/2019,1282592,3.75 , LIDL GB LONDON,LIFE SKILLS,Peoples Services Directorate,Personal Requisites,F106,
http://opendatacommunities.org/id/london-borough-council/sutton,London Borough of Sutton,14/09/2019,1282592,14.00 , PEACOCK STORES LTD,JC INTE,Peoples Services Directorate,Personal Requisites,F106,
http://opendatacommunities.org/id/london-borough-council/sutton,London Borough of Sutton,12/09/2019,1282592,9.27 , MCDONALDS,MC ACT,Peoples Services Directorate,Personal Requisites,F106,
http://opendatacommunities.org/id/london-borough-council/sutton,London Borough of Sutton,11/09/2019,1282592,4.57 , MCDONALDS911,KP ACT,Peoples Services Directorate,Personal Requisites,F106,
http://opendatacommunities.org/id/london-borough-council/sutton,London Borough of Sutton,09/09/2019,1282592,18.54 , WOODCOTE GREEN,RA ACT BDAY,Peoples Services Directorate,Personal Requisites,F106,
http://opendatacommunities.org/id/london-borough-council/sutton,London Borough of Sutton,07/09/2019,1282592,27.00 , SAINSBURYS 2006,LG BDAY,Peoples Services Directorate,Personal Requisites,F106,
http://opendatacommunities.org/id/london-borough-council/sutton,London Borough of Sutton,07/09/2019,1282592,50.00 , THE POST OFFICE,SD BDAY,Peoples Services Directorate,Personal Requisites,F106,
http://opendatacommunities.org/id/london-borough-council/sutton,London Borough of Sutton,05/09/2019,1282592,4.13 , MCDONALDS911,MA ACT,Peoples Services Directorate,Personal Requisites,F106,
http://opendatacommunities.org/id/london-borough-council/sutton,London Borough of Sutton,03/09/2019,1282592,18.65 , PPOINT_ SPARKS FOOD &,18 AND 21YR YP CARDS,Peoples Services Directorate,Personal Requisites,F106,
http://opendatacommunities.org/id/london-borough-council/sutton,London Borough of Sutton,26/09/2019,1282592,9.94 , AMZNMKTPLACE,"SPLIT - AMAZONBASICS HIGH-SPEED 4K, (44.28%)",Peoples Services Directorate,Personal Requisites,F106,
http://opendatacommunities.org/id/london-borough-council/sutton,London Borough of Sutton,26/09/2019,1282592,8.36 , AMZNMKTPLACE,SPLIT - KEYBOARD  (37.24%),Peoples Services Directorate,Personal Requisites,F106,
http://opendatacommunities.org/id/london-borough-council/sutton,London Borough of Sutton,26/09/2019,1282592,4.15 , AMZNMKTPLACE,BALANCING ENTRY AMOUNT (18.49%),Peoples Services Directorate,Personal Requisites,F106,
http://opendatacommunities.org/id/london-borough-council/sutton,London Borough of Sutton,23/09/2019,1282592,79.99 , AMAZON.CO.UK MA8V907H4,SPLIT - BENQ GW2270H 21.5 INCH FLICKER FREE LED MONITOR - BLACK (100%),Peoples Services Directorate,Personal Requisites,F106,
http://opendatacommunities.org/id/london-borough-council/sutton,London Borough of Sutton,23/09/2019,1282592,136.99 , AMZNMKTPLACE,136.99 - F106 0304 9999 - AMAZON.PNG,Peoples Services Directorate,Personal Requisites,F106,
http://opendatacommunities.org/id/london-borough-council/sutton,London Borough of Sutton,18/09/2019,1282592,50.00 , HMCTS-CAMBS005,,Peoples Services Directorate,Personal Requisites,F106,
http://opendatacommunities.org/id/london-borough-council/sutton,London Borough of Sutton,17/09/2019,1282592,230.00 , CURRYS ONLINE,230.00 - F106 0304 9999 - CURRYS ORDER.,Peoples Services Directorate,Personal Requisites,F106,
http://opendatacommunities.org/id/london-borough-council/sutton,London Borough of Sutton,17/09/2019,1282592,604.98 , WWW.ARGOS.CO.UK, 604.98 - F106 0304 9999 - ARGOS,Peoples Services Directorate,Personal Requisites,F106,
http://opendatacommunities.org/id/london-borough-council/sutton,London Borough of Sutton,11/09/2019,1282592,154.50 , TVLICENSING.CO.UK,154.50 - F106 0304 9999 - TV LICENCE FOR THE LCT.PNG,Peoples Services Directorate,Personal Requisites,F106,
http://opendatacommunities.org/id/london-borough-council/sutton,London Borough of Sutton,24/09/2019,1282592,121.00 , HOTEL ON BOOKING.COM A,121.00 - H202 0304 9999 - BOOKING.COM ANCHOR HOUSE,Peoples Services Directorate,Accommodation - Bed and Breakfast,H202,
http://opendatacommunities.org/id/london-borough-council/sutton,London Borough of Sutton,03/09/2019,1282592,153.95 , WWW.ARGOS.CO.UK,GL SET UP,Peoples Services Directorate,Set Up Costs - Children Leaving Care,H336,
http://opendatacommunities.org/id/london-borough-council/sutton,London Borough of Sutton,10/09/2019,1282592,80.83 , WWW.IKEA.COM,ACCOMMODATION SET UP,Peoples Services Directorate,Set Up Costs - Children Leaving Care,H336,
http://opendatacommunities.org/id/london-borough-council/sutton,London Borough of Sutton,24/09/2019,1282592,40.00 , ARGOS RETAIL GROUP,40.00 - H336 0304 9999 - ARGOS YOUNG PERSON.,Peoples Services Directorate,Set Up Costs - Children Leaving Care,H336,
http://opendatacommunities.org/id/london-borough-council/sutton,London Borough of Sutton,24/09/2019,1282592,73.93 , WWW.ARGOS.CO.UK,SET UP COSTS,Peoples Services Directorate,Set Up Costs - Children Leaving Care,H336,
http://opendatacommunities.org/id/london-borough-council/sutton,London Borough of Sutton,28/08/2019,1282592,404.00 , CURRYS ONLINE,SET UP,Peoples Services Directorate,Set Up Costs - Children Leaving Care,H336,
http://opendatacommunities.org/id/london-borough-council/sutton,London Borough of Sutton,19/08/2019,1282592,(134.00), WWW.IKEA.COM,REFUND - LEAVING CARE,Peoples Services Directorate,Set Up Costs - Children Leaving Care,H336,
http://opendatacommunities.org/id/london-borough-council/sutton,London Borough of Sutton,17/09/2019,1282592,89.00 , WWW.IKEA.COM,89.00 - F106 0304 9999 - IKEA.,Peoples Services Directorate,Personal Requisites,F106,
http://opendatacommunities.org/id/london-borough-council/sutton,London Borough of Sutton,11/09/2019,1282592,20.00 , OYSTER AUTO-TOP UP,20.00 - A530 0310 9999 - OYSTER TOP UP,Peoples Services Directorate,Conferences - Travel and Subsistence,A526,
http://opendatacommunities.org/id/london-borough-council/sutton,London Borough of Sutton,04/09/2019,1282592,20.00 , OYSTER AUTO-TOP UP,20.00 AUTO TOP UP - A530 0310 9999,Peoples Services Directorate,Travelling and Subsistence Allowances,A530,
http://opendatacommunities.org/id/london-borough-council/sutton,London Borough of Sutton,01/09/2019,1282592,20.00 , OYSTER AUTO-TOP UP,20.00 AUTO TOP UP - A530 0310 9999,Peoples Services Directorate,Travelling and Subsistence Allowances,A530,
http://opendatacommunities.org/id/london-borough-council/sutton,London Borough of Sutton,21/09/2019,1282592,20.00 , OYSTER AUTO-TOP UP,20.00 AUTO TOP UP - A530 0310 9999,Peoples Services Directorate,Travelling and Subsistence Allowances,A530,
http://opendatacommunities.org/id/london-borough-council/sutton,London Borough of Sutton,20/09/2019,1282592,20.00 , OYSTER AUTO-TOP UP,20.00 AUTO TOP UP - A530 0310 9999 -,Peoples Services Directorate,Travelling and Subsistence Allowances,A530,
http://opendatacommunities.org/id/london-borough-council/sutton,London Borough of Sutton,09/09/2019,1282592,130.00 , BGS (TRADING) LTD,AWAITING CORRECT RECEIPT,Peoples Services Directorate,Travelling and Subsistence Allowances,A530,
http://opendatacommunities.org/id/london-borough-council/sutton,London Borough of Sutton,18/09/2019,1282592,20.00 , OYSTER AUTO-TOP UP,20.00 AUTO TOP UP - A530 0310 9999 -,Peoples Services Directorate,Travelling and Subsistence Allowances,A530,
http://opendatacommunities.org/id/london-borough-council/sutton,London Borough of Sutton,12/09/2019,1282592,20.00 , OYSTER AUTO-TOP UP,20.00 AUTO TOP UP - A530 0311 9999 -,Peoples Services Directorate,Travelling and Subsistence Allowances,A530,
http://opendatacommunities.org/id/london-borough-council/sutton,London Borough of Sutton,29/08/2019,1282592,20.00 , OYSTER AUTO-TOP UP,20.00 AUTO TOP UP - AA530 0310 9999,Peoples Services Directorate,Travelling and Subsistence Allowances,A530,
http://opendatacommunities.org/id/london-borough-council/sutton,London Borough of Sutton,29/08/2019,1282592,20.00 , OYSTER AUTO-TOP UP,20.00 AUTO TOP UP - A530 0310 9999,Peoples Services Directorate,Recruitment Expenses,A531,
http://opendatacommunities.org/id/london-borough-council/sutton,London Borough of Sutton,17/09/2019,1282592,611.71 , TRAVELODGE,734.05 - H202 0310 9999 - TRAVELODGE MORDEN.JPG,Peoples Services Directorate,Accommodation - Bed and Breakfast,H202,
http://opendatacommunities.org/id/london-borough-council/sutton,London Borough of Sutton,17/09/2019,1282592,101.24 , TRAVELODGE,101.24 - H202 0310 9999 - TRAVELODGE BROMLEY .PNG,Peoples Services Directorate,Accommodation - Bed and Breakfast,H202,
http://opendatacommunities.org/id/london-borough-council/sutton,London Borough of Sutton,19/09/2019,1282592,86.65 , TRAVELODGE,86.65 - H202 0310 9999 - TRAVELODGE.,Peoples Services Directorate,Accommodation - Bed and Breakfast,H202,
http://opendatacommunities.org/id/london-borough-council/sutton,London Borough of Sutton,18/09/2019,1282592,"2,067.00 ", TRAVELODGE,"2,067. - H202 0310 9999 TRAVELODGE MORDEN BOOKING",Peoples Services Directorate,Accommodation - Bed and Breakfast,H202,
http://opendatacommunities.org/id/london-borough-council/sutton,London Borough of Sutton,27/08/2019,1282592,606.75 , TRAVELODGE,606.75 - H202 0310 9999 - TRAVELODGE MORDEN.,Peoples Services Directorate,Accommodation - Bed and Breakfast,H202,
http://opendatacommunities.org/id/london-borough-council/sutton,London Borough of Sutton,24/09/2019,1282592,734.05 , TRAVELODGE,ACCOMODATION,Peoples Services Directorate,Accommodation - Bed and Breakfast,H202,
http://opendatacommunities.org/id/london-borough-council/sutton,London Borough of Sutton,03/09/2019,1282592,"1,463.15 ", TRAVELODGE,EMERGENCY ACCOMMODATION,Peoples Services Directorate,Accommodation - Bed and Breakfast,H202,
http://opendatacommunities.org/id/london-borough-council/sutton,London Borough of Sutton,28/08/2019,1282592,251.50 , PREMIER INN,ACCOMODATION,Peoples Services Directorate,C.C.A Travel & Subsistance,H212,
http://opendatacommunities.org/id/london-borough-council/sutton,London Borough of Sutton,05/09/2019,1282592,"1,583.00 ", TRAVELODGE,ACCOMODATION,Peoples Services Directorate,C.C.A Food & Clothing,H213,
http://opendatacommunities.org/id/london-borough-council/sutton,London Borough of Sutton,31/08/2019,1282592,(20.46), AO RETAIL LIMITED,AWAITING CORRECT RECEIPT,Peoples Services Directorate,Travelling and Subsistence Allowances,A530,
http://opendatacommunities.org/id/london-borough-council/sutton,London Borough of Sutton,07/09/2019,1282592,20.00 , OYSTER AUTO-TOP UP,20.00 AUTO TOP UP - A530 0311 999,Peoples Services Directorate,Travelling and Subsistence Allowances,A530,
http://opendatacommunities.org/id/london-borough-council/sutton,London Borough of Sutton,05/09/2019,1282592,20.00 , OYSTER AUTO-TOP UP,20.00 AUTO TOP UP - A530 0311 9999,Peoples Services Directorate,Travelling and Subsistence Allowances,A530,
http://opendatacommunities.org/id/london-borough-council/sutton,London Borough of Sutton,13/09/2019,1282592,20.00 , OYSTER AUTO-TOP UP,20.00 - A530 0311 9999 - OYSTER TOP UP,Peoples Services Directorate,Travelling and Subsistence Allowances,A530,
http://opendatacommunities.org/id/london-borough-council/sutton,London Borough of Sutton,12/09/2019,1282592,20.00 , OYSTER AUTO-TOP UP,20.00 - A530 0311 9999 - OYSTER TOP UP,Peoples Services Directorate,Travelling and Subsistence Allowances,A530,
http://opendatacommunities.org/id/london-borough-council/sutton,London Borough of Sutton,11/09/2019,1282592,33.00 , LBSUTTON,33.00 - F106 0311 9999 - SUTTON COUNCIL BIRTH CERTIFICATES.,Peoples Services Directorate,Travelling and Subsistence Allowances,A530,
http://opendatacommunities.org/id/london-borough-council/sutton,London Borough of Sutton,27/08/2019,1282592,27.50 , LBSUTTON,BIRTH CERTIFICATE,Peoples Services Directorate,Personal Requisites,F106,
http://opendatacommunities.org/id/london-borough-council/sutton,London Borough of Sutton,23/09/2019,1282592,33.00 , LBSUTTON,33.00 - F106 0311 9999 - SURREYCC,Peoples Services Directorate,Personal Requisites,F106,
http://opendatacommunities.org/id/london-borough-council/sutton,London Borough of Sutton,23/09/2019,1282592,33.00 , SURREY CC CARD PAY,33.00 - F106 0311 9999 - SURREYCC,Peoples Services Directorate,Personal Requisites,F106,
http://opendatacommunities.org/id/london-borough-council/sutton,London Borough of Sutton,27/08/2019,1282592,15.60 , WWW.WIGHTLINK.CO.UK,15.60 - F106 0311 9999 - WIGHTLINK FERRIES.,Peoples Services Directorate,Personal Requisites,F106,
http://opendatacommunities.org/id/london-borough-council/sutton,London Borough of Sutton,11/09/2019,1282592,33.00 , LBSUTTON,33.00 - F106 0311 9999 - SURREY COUNCIL BIRTH CERTIFICATES .,Peoples Services Directorate,Personal Requisites,F106,
http://opendatacommunities.org/id/london-borough-council/sutton,London Borough of Sutton,03/09/2019,1282592,25.65 , GCC - REGISTRARS,PERSOANAL REQUISITES,Peoples Services Directorate,Personal Requisites,F106,
http://opendatacommunities.org/id/london-borough-council/sutton,London Borough of Sutton,29/08/2019,1282592,54.00 , WWW.TEAM-SPORT.CO.UK,PERSONAL REQUISTES,Peoples Services Directorate,Personal Requisites,F106,
http://opendatacommunities.org/id/london-borough-council/sutton,London Borough of Sutton,13/08/2019,1282592,(29.50), GEN REGISTER OFFICE,PERSONAL REQUISITES,Peoples Services Directorate,Personal Requisites,F106,
http://opendatacommunities.org/id/london-borough-council/sutton,London Borough of Sutton,04/09/2019,1282592,183.98 , TRAVELODGE, 183.98 - H202 0311 9999 - TRAVELODGE,Peoples Services Directorate,Accommodation - Bed and Breakfast,H202,
http://opendatacommunities.org/id/london-borough-council/sutton,London Borough of Sutton,28/08/2019,1282592,65.00 , THE YELFS HOTEL,ACCOMODATION,Peoples Services Directorate,Accommodation - Bed and Breakfast,H202,
http://opendatacommunities.org/id/london-borough-council/sutton,London Borough of Sutton,01/09/2019,1282592,20.00 , OYSTER AUTO-TOP UP,20.00 AUTO TOP UP - A530 0312 9999 -,Peoples Services Directorate,Travelling and Subsistence Allowances,A530,
http://opendatacommunities.org/id/london-borough-council/sutton,London Borough of Sutton,31/08/2019,1282592,20.00 , OYSTER AUTO-TOP UP,#3 - 20.00 AUTO TOPUP - A530 0312 9999 -,Peoples Services Directorate,Travelling and Subsistence Allowances,A530,
http://opendatacommunities.org/id/london-borough-council/sutton,London Borough of Sutton,31/08/2019,1282592,20.00 , OYSTER AUTO-TOP UP,#2 - 20.00 AUTO TOPUP - A530 0312 9999,Peoples Services Directorate,Travelling and Subsistence Allowances,A530,
http://opendatacommunities.org/id/london-borough-council/sutton,London Borough of Sutton,20/09/2019,1282592,20.00 , OYSTER AUTO-TOP UP,COOKIE CONSENT20.00 AUTO TOP UP - A530 0312 9999,Peoples Services Directorate,Travelling and Subsistence Allowances,A530,
http://opendatacommunities.org/id/london-borough-council/sutton,London Borough of Sutton,07/09/2019,1282592,20.00 , OYSTER AUTO-TOP UP,20.00 AUTO TOP UP - A530 0312 9999,Peoples Services Directorate,Travelling and Subsistence Allowances,A530,
http://opendatacommunities.org/id/london-borough-council/sutton,London Borough of Sutton,19/09/2019,1282592,20.00 , OYSTER AUTO-TOP UP,20.00 AUTO TOP UP - A530 0312 9999 -,Peoples Services Directorate,Travelling and Subsistence Allowances,A530,
http://opendatacommunities.org/id/london-borough-council/sutton,London Borough of Sutton,18/09/2019,1282592,20.00 , OYSTER AUTO-TOP UP,20.00 AUTO TOP UP - A530 0312 99,Peoples Services Directorate,Travelling and Subsistence Allowances,A530,
http://opendatacommunities.org/id/london-borough-council/sutton,London Borough of Sutton,05/09/2019,1282592,75.87 , MINICABIT,TRAVEL,Peoples Services Directorate,Travelling and Subsistence Allowances,A530,
http://opendatacommunities.org/id/london-borough-council/sutton,London Borough of Sutton,02/09/2019,1282592,50.82 , MINICABIT, 50.82 - A530 0312 9999 - MINICABBIT,Peoples Services Directorate,Recruitment Expenses,A531,
http://opendatacommunities.org/id/london-borough-council/sutton,London Borough of Sutton,21/09/2019,1282592,20.00 , OYSTER AUTO-TOP UP,20.00 AUTO TOP UP - A530 0312 9999,Peoples Services Directorate,Recruitment Expenses,A531,
http://opendatacommunities.org/id/london-borough-council/sutton,London Borough of Sutton,23/09/2019,1282592,33.00 , SURREY CC CARD PAY,COOKIE CONSENT33.00 - F106 0312 9999 - SUTTON REGISTER OFFICE,Peoples Services Directorate,Personal Requisites,F106,
http://opendatacommunities.org/id/london-borough-council/sutton,London Borough of Sutton,03/09/2019,1282592,33.00 , LBSUTTON,33.00 - F106 0312 9999 - BIRTH CERTIFICATE SUTTON,Peoples Services Directorate,Personal Requisites,F106,
http://opendatacommunities.org/id/london-borough-council/sutton,London Borough of Sutton,02/09/2019,1282592,30.99 , THE HOUSE INC LTD,30.99 - F150 0321 9999 - FLOWERS FOR FOSTERING .,Peoples Services Directorate,Provisions - General,F150,
http://opendatacommunities.org/id/london-borough-council/sutton,London Borough of Sutton,13/09/2019,1282592,13.30 , EMPIRE CINEMAS,- 13.30- F150 0312 9999 - CINEMA FOR CONT,Peoples Services Directorate,Provisions - General,F150,
http://opendatacommunities.org/id/london-borough-council/sutton,London Borough of Sutton,23/09/2019,1282592,156.65 , TRAVELODGE,TRAVELODGE BOOKING FOR STAFF.PNG,Peoples Services Directorate,Accommodation - Bed and Breakfast,H202,
http://opendatacommunities.org/id/london-borough-council/sutton,London Borough of Sutton,20/09/2019,1282592,44.00 , TRAVELODGE,44.00 - H202 0312 9999 - TRAVELODGE,Peoples Services Directorate,Accommodation - Bed and Breakfast,H202,
http://opendatacommunities.org/id/london-borough-council/sutton,London Borough of Sutton,24/09/2019,1282592,106.50 , PREMIER INN,ACCOMODATION,Peoples Services Directorate,Accommodation - Bed and Breakfast,H202,
http://opendatacommunities.org/id/london-borough-council/sutton,London Borough of Sutton,24/09/2019,1282592,127.50 , PREMIER INN,ACCOMODATION,Peoples Services Directorate,Accommodation - Bed and Breakfast,H202,
http://opendatacommunities.org/id/london-borough-council/sutton,London Borough of Sutton,23/09/2019,1282592,109.64 , MINICABIT,TAXI FOR LAC CHILD,Peoples Services Directorate,C.C.A Travel & Subsistance,H212,
http://opendatacommunities.org/id/london-borough-council/sutton,London Borough of Sutton,31/08/2019,1282592,20.00 , OYSTER AUTO-TOP UP,20.00 AUTO TOP UP - A530 0318 9999,Peoples Services Directorate,Travelling and Subsistence Allowances,A530,
http://opendatacommunities.org/id/london-borough-council/sutton,London Borough of Sutton,30/08/2019,1282592,20.00 , OYSTER AUTO-TOP UP,20.00 AUTO TOP UP - A530 0318 9999,Peoples Services Directorate,Travelling and Subsistence Allowances,A530,
http://opendatacommunities.org/id/london-borough-council/sutton,London Borough of Sutton,30/08/2019,1282592,20.00 , OYSTER AUTO-TOP UP,20.00 AUTO TOP UP - A530 0318 9999,Peoples Services Directorate,Travelling and Subsistence Allowances,A530,
http://opendatacommunities.org/id/london-borough-council/sutton,London Borough of Sutton,22/09/2019,1282592,20.00 , OYSTER AUTO-TOP UP,20.00 AUTO TOP UP -A530 0318 9999,Peoples Services Directorate,Travelling and Subsistence Allowances,A530,
http://opendatacommunities.org/id/london-borough-council/sutton,London Borough of Sutton,07/09/2019,1282592,20.00 , OYSTER AUTO-TOP UP,20.00 AUTO TOP UP - A530 0318 9999,Peoples Services Directorate,Travelling and Subsistence Allowances,A530,
http://opendatacommunities.org/id/london-borough-council/sutton,London Borough of Sutton,06/09/2019,1282592,20.00 , OYSTER AUTO-TOP UP,20.00 - A530 0318 9999 - OYSTER TOP,Peoples Services Directorate,Travelling and Subsistence Allowances,A530,
http://opendatacommunities.org/id/london-borough-council/sutton,London Borough of Sutton,13/09/2019,1282592,20.00 , OYSTER AUTO-TOP UP, 20.00 AUTO TOP UP - A530 0318 9999,Peoples Services Directorate,Travelling and Subsistence Allowances,A530,
http://opendatacommunities.org/id/london-borough-council/sutton,London Borough of Sutton,11/09/2019,1282592,20.00 , OYSTER AUTO-TOP UP,20.00 AUTO TOP UP - A530 0318 9999 25TH SEPT.PNG,Peoples Services Directorate,Travelling and Subsistence Allowances,A530,
http://opendatacommunities.org/id/london-borough-council/sutton,London Borough of Sutton,03/09/2019,1282592,141.94 , WWW.ARGOS.CO.UK,PERSONAL REQUISITES,Peoples Services Directorate,Personal Requisites,F106,
http://opendatacommunities.org/id/london-borough-council/sutton,London Borough of Sutton,03/09/2019,1282592,59.99 , WWW.ARGOS.CO.UK,PERSONAL REQUISITES,Peoples Services Directorate,Personal Requisites,F106,
http://opendatacommunities.org/id/london-borough-council/sutton,London Borough of Sutton,27/08/2019,1282592,130.00 , WWW.CORAM.ORG.UK,STAFF TRAINING,Peoples Services Directorate,Training - Course Fees,A520,
http://opendatacommunities.org/id/london-borough-council/sutton,London Borough of Sutton,05/09/2019,1282592,20.00 , WWW.WIGHTLINK.CO.UK,TRAVEL,Peoples Services Directorate,Travelling and Subsistence Allowances,A530,
http://opendatacommunities.org/id/london-borough-council/sutton,London Borough of Sutton,10/09/2019,1282592,67.30 , WWW.CORAM.ORG.UK,BOOKS FOR FOSTERING,Peoples Services Directorate,Provisions - General,F150,
http://opendatacommunities.org/id/london-borough-council/sutton,London Borough of Sutton,28/08/2019,1282592,100.00 , LONDON & BELCHER,GENERAL PROVISIONS,Peoples Services Directorate,Provisions - General,F150,
http://opendatacommunities.org/id/london-borough-council/sutton,London Borough of Sutton,13/09/2019,1282592,"2,606.50 ", ONE4ALL,CELEBRATING SUCCESS,Peoples Services Directorate,LAC - Education,F269,
http://opendatacommunities.org/id/london-borough-council/sutton,London Borough of Sutton,04/09/2019,1282592,50.00 , LONDON & BELCHER,FLOWERS FOR ADOPTION SERVICE,Peoples Services Directorate,Personal Requisites,F106,
http://opendatacommunities.org/id/london-borough-council/sutton,London Borough of Sutton,30/08/2019,1282592,22.77 , CARD FACTORY,PERSONAL REQUISITES,Peoples Services Directorate,Personal Requisites,F106,
http://opendatacommunities.org/id/london-borough-council/sutton,London Borough of Sutton,17/09/2019,1282592,20.00 , OYSTER AUTO-TOP UP,- OYSTER TOP,Chief Executive's Directorate,Travelling and Subsistence Allowances,A530,
http://opendatacommunities.org/id/london-borough-council/sutton,London Borough of Sutton,06/09/2019,1282592,104.91 , TESCO STORES 5999,PERSONAL REQUISITES,Peoples Services Directorate,Personal Requisites,F106,
http://opendatacommunities.org/id/london-borough-council/sutton,London Borough of Sutton,13/09/2019,1282592,41.20 , EMPIRE CINEMAS,41.20 - F150 0312 9999 - CINEMA FOR CONTACT,Peoples Services Directorate,Provisions - General,F150,
http://opendatacommunities.org/id/london-borough-council/sutton,London Borough of Sutton,13/09/2019,1282592,(34.19), AMZNMKTPLACE AMAZON.CO,SPLIT - LAXLLENT SUN SHADE (100%),Peoples Services Directorate,Provisions - General,F150,
http://opendatacommunities.org/id/london-borough-council/sutton,London Borough of Sutton,13/09/2019,1282592,(19.99), AMZNMKTPLACE AMAZON.CO,"SPLIT - SAFETY 1ST SECURE TECH SIMPLY CLOSE METAL GATE, WHITE (100%)",Peoples Services Directorate,Provisions - General,F150,
http://opendatacommunities.org/id/london-borough-council/sutton,London Borough of Sutton,13/09/2019,1282592,(19.99), AMZNMKTPLACE AMAZON.CO,"SPLIT - SAFETY 1ST SECURE TECH SIMPLY CLOSE METAL GATE, WHITE (100%)",Peoples Services Directorate,Provisions - General,F150,
http://opendatacommunities.org/id/london-borough-council/sutton,London Borough of Sutton,13/09/2019,1282592,(34.19), AMZNMKTPLACE AMAZON.CO,SPLIT - LAXLLENT SUN SHADE SAIL SUN PROTECTION,Peoples Services Directorate,Provisions - General,F150,
http://opendatacommunities.org/id/london-borough-council/sutton,London Borough of Sutton,15/09/2019,1282592,20.00 , OYSTER AUTO-TOP UP,20.00 -- OYSTER TOP,Peoples Services Directorate,Conferences - Travel and Subsistence,A526,
http://opendatacommunities.org/id/london-borough-council/sutton,London Borough of Sutton,05/09/2019,1282592,20.00 , OYSTER AUTO-TOP UP,20.00 AUTO TOP UP - A530 0359 9999,Peoples Services Directorate,Travelling and Subsistence Allowances,A530,
http://opendatacommunities.org/id/london-borough-council/sutton,London Borough of Sutton,12/09/2019,1282592,20.00 , OYSTER AUTO-TOP UP,20.00 AUTO TOP UP - A530 0359 9999,Peoples Services Directorate,Travelling and Subsistence Allowances,A530,
http://opendatacommunities.org/id/london-borough-council/sutton,London Borough of Sutton,12/07/2019,1282592,0.53 ,,FRAUDULENT ACTIVITY,Chief Executive's Directorate,LAC - Education,F269,
http://opendatacommunities.org/id/london-borough-council/sutton,London Borough of Sutton,12/07/2019,1282592,(0.53),,FRAUDULENT ACTIVITY,Chief Executive's Directorate,LAC - Education,F269,
http://opendatacommunities.org/id/london-borough-council/sutton,London Borough of Sutton,11/07/2019,1282592,19.20 ,,FRAUDULENT ACTIVITY,Chief Executive's Directorate,LAC - Education,F269,
http://opendatacommunities.org/id/london-borough-council/sutton,London Borough of Sutton,11/07/2019,1282592,(19.20),,FRAUDULENT ACTIVITY,Chief Executive's Directorate,LAC - Education,F269,
http://opendatacommunities.org/id/london-borough-council/sutton,London Borough of Sutton,23/09/2019,1282592,"1,047.00 ", WWW.MARKALLENGROUP.COM,TRAINING FOR EARLY HELP,Chief Executive's Directorate,Training - Course Fees,A520,
http://opendatacommunities.org/id/london-borough-council/sutton,London Borough of Sutton,03/09/2019,1282592,95.00 , HOLIDAY INNS,95.00 - A530 0366 0655,Chief Executive's Directorate,Travelling and Subsistence Allowances,A530,
http://opendatacommunities.org/id/london-borough-council/sutton,London Borough of Sutton,29/08/2019,1282592,173.24 , EASYJET,20.00 AUTO TOP UP - A530 0383 9999 -,Peoples Services Directorate,Travelling and Subsistence Allowances,A530,
http://opendatacommunities.org/id/london-borough-council/sutton,London Borough of Sutton,22/09/2019,1282592,20.00 , OYSTER AUTO-TOP UP,20.00 AUTO TOP UP - A530 0383 9999,Peoples Services Directorate,Travelling and Subsistence Allowances,A530,
http://opendatacommunities.org/id/london-borough-council/sutton,London Borough of Sutton,14/09/2019,1282592,20.00 , OYSTER AUTO-TOP UP,20.00 - A530 0383 9999 - OYSTER TOP,Peoples Services Directorate,Travelling and Subsistence Allowances,A530,
http://opendatacommunities.org/id/london-borough-council/sutton,London Borough of Sutton,06/09/2019,1282592,696.35 , TRAVELODGE, 696.35 - H202 0383 9999 - MORDEN TRAVELODGE.,Peoples Services Directorate,Accommodation - Bed and Breakfast,H202,
http://opendatacommunities.org/id/london-borough-council/sutton,London Borough of Sutton,15/09/2019,1282592,20.00 , OYSTER AUTO-TOP UP,20.00 - - OYSTER TOP,Peoples Services Directorate,Travelling and Subsistence Allowances,A530,
http://opendatacommunities.org/id/london-borough-council/sutton,London Borough of Sutton,30/08/2019,1282592,547.92 , TRAVELODGE,ACCOMMODATION,Peoples Services Directorate,Accommodation - Bed and Breakfast,H202,
http://opendatacommunities.org/id/london-borough-council/sutton,London Borough of Sutton,12/09/2019,1282592,808.45 , TRAVELODGE,808.45 - H202 0384 9999 - TRAVELODGE,Peoples Services Directorate,Accommodation - Bed and Breakfast,H202,
http://opendatacommunities.org/id/london-borough-council/sutton,London Borough of Sutton,19/09/2019,1282592,702.50 , TRAVELODGE,.702.50 - H202 0384 9999 - TRAVELODGE MORDEN .,Peoples Services Directorate,Payments Under the Child Care Act 1980,H210,
http://opendatacommunities.org/id/london-borough-council/sutton,London Borough of Sutton,09/09/2019,1282592,8.32 , AMZNMKTPLACE AMAZON.CO,"SPLIT - CASIO FX-83GTX SCIENTIFIC CALCULATOR, BLACK (17.51%)",Peoples Services Directorate,LAC - Education,F269,
http://opendatacommunities.org/id/london-borough-council/sutton,London Borough of Sutton,09/09/2019,1282592,6.24 , AMZNMKTPLACE AMAZON.CO,SPLIT - GREAT QUALITY PACK OF 12 FILE FOLDERS A4 PLASTIC WALLETS (13.13%),Peoples Services Directorate,LAC - Education,F269,
http://opendatacommunities.org/id/london-borough-council/sutton,London Borough of Sutton,09/09/2019,1282592,7.57 , AMZNMKTPLACE AMAZON.CO,SPLIT - SANDISK 64 GB CRUZER BLADE USB FLASH DRIVE (15.93%),Peoples Services Directorate,LAC - Education,F269,
http://opendatacommunities.org/id/london-borough-council/sutton,London Borough of Sutton,09/09/2019,1282592,6.66 , AMZNMKTPLACE AMAZON.CO,"SPLIT - ELBA STRONGLINE A4 PLASTIC ON BOARD LEVER ARCH FILE, ASSORTED, PACK OF 3 (14%)",Peoples Services Directorate,LAC - Education,F269,
http://opendatacommunities.org/id/london-borough-council/sutton,London Borough of Sutton,09/09/2019,1282592,4.16 , AMZNMKTPLACE AMAZON.CO,"SPLIT - SISTEMA TWIST 'N' SIP WATER BOTTLE, 620 ML - BLUE (8.75%)",Peoples Services Directorate,LAC - Education,F269,
http://opendatacommunities.org/id/london-borough-council/sutton,London Borough of Sutton,09/09/2019,1282592,6.97 , AMZNMKTPLACE AMAZON.CO,SPLIT - HELIX OXFORD COMPLETE STATIONERY SET IN 13.5 INCH PENCIL CASE (14.65%),Peoples Services Directorate,LAC - Education,F269,
http://opendatacommunities.org/id/london-borough-council/sutton,London Borough of Sutton,09/09/2019,1282592,4.17 , AMZNMKTPLACE AMAZON.CO,"SPLIT - OXFORD CAMPUS A4 300 PAGE REFILL PAD, NAVY, 1 NOTEBOOK (8.76%)",Peoples Services Directorate,LAC - Education,F269,
http://opendatacommunities.org/id/london-borough-council/sutton,London Borough of Sutton,08/09/2019,1282592,24.36 , AMAZON.CO.UK MA10G9XC4,SPLIT - OPEN MIND. PRE-INTERMEDIATE STUDENT'S BOOK WITH WEBCODE (90.55%),Peoples Services Directorate,LAC - Education,F269,
http://opendatacommunities.org/id/london-borough-council/sutton,London Borough of Sutton,08/09/2019,1282592,2.77 , AMAZON.CO.UK MA10G9XC4,BALANCING ENTRY AMOUNT (9.45%),Peoples Services Directorate,LAC - Education,F269,
http://opendatacommunities.org/id/london-borough-council/sutton,London Borough of Sutton,08/09/2019,1282592,2.17 , AMAZON.CO.UK MA10G9XC4,BALANCING ENTRY TAX (0%),Peoples Services Directorate,LAC - Education,F269,
http://opendatacommunities.org/id/london-borough-council/sutton,London Borough of Sutton,08/09/2019,1282592,6.96 , AMAZON.CO.UK MA5NS1X44,SPLIT - COLLINS FIRST SCHOOL DICTIONARY : LEARN WITH WORDS (COLLINS PRIMARY DICTIONARIES) (69.95%),Peoples Services Directorate,LAC - Education,F269,
http://opendatacommunities.org/id/london-borough-council/sutton,London Borough of Sutton,08/09/2019,1282592,2.99 , AMAZON.CO.UK MA5NS1X44,BALANCING ENTRY AMOUNT (30.05%),Peoples Services Directorate,LAC - Education,F269,
http://opendatacommunities.org/id/london-borough-council/sutton,London Borough of Sutton,07/09/2019,1282592,21.59 , AMZNMKTPLACE,SPLIT - ON-SITE GUIDE (BS 7671:2018) (ELECTRICAL REGULATIONS) (88.52%),Peoples Services Directorate,LAC - Education,F269,
http://opendatacommunities.org/id/london-borough-council/sutton,London Borough of Sutton,07/09/2019,1282592,2.80 , AMZNMKTPLACE,BALANCING ENTRY AMOUNT (11.48%),Peoples Services Directorate,LAC - Education,F269,
http://opendatacommunities.org/id/london-borough-council/sutton,London Borough of Sutton,06/09/2019,1282592,23.89 , AMAZON.CO.UK MA9XM4X64,SPLIT - ELEMENTARY: OPEN MIND. STUDENT'S BOOK WITH WEBCODE  (90.38%),Peoples Services Directorate,LAC - Education,F269,
http://opendatacommunities.org/id/london-borough-council/sutton,London Borough of Sutton,06/09/2019,1282592,2.77 , AMAZON.CO.UK MA9XM4X64,BALANCING ENTRY AMOUNT (9.62%),Peoples Services Directorate,LAC - Education,F269,
http://opendatacommunities.org/id/london-borough-council/sutton,London Borough of Sutton,06/09/2019,1282592,2.13 , AMAZON.CO.UK MA9XM4X64,BALANCING ENTRY TAX (0%),Peoples Services Directorate,LAC - Education,F269,
http://opendatacommunities.org/id/london-borough-council/sutton,London Borough of Sutton,06/09/2019,1282592,19.90 , AMAZON.CO.UK MA5PX8XC4,SPLIT - EDEXCEL GCSE (9-1) MATHEMATICS: HIGHER STUDENT BOOK (EDEXCEL GCSE MATHS 2015) (45.95%),Peoples Services Directorate,LAC - Education,F269,
http://opendatacommunities.org/id/london-borough-council/sutton,London Borough of Sutton,06/09/2019,1282592,8.86 , AMAZON.CO.UK MA5PX8XC4,SPLIT - GRADE 9-1 GCSE ENGLISH LANGUAGE AND LITERATURE COMPLETE REVISION & PRACTICE(20.46%),Peoples Services Directorate,LAC - Education,F269,
http://opendatacommunities.org/id/london-borough-council/sutton,London Borough of Sutton,06/09/2019,1282592,14.55 , AMAZON.CO.UK MA5PX8XC4,SPLIT - AQA GCSE ENGLISH LANGUAGE AND ENGLISH LITERATURE: CORE STUDENT BOOK (33.59%),Peoples Services Directorate,LAC - Education,F269,
http://opendatacommunities.org/id/london-borough-council/sutton,London Borough of Sutton,20/09/2019,1282592,9.08 , AMAZON.CO.UK MA00O3KZ4,SPLIT - NEW GCSE MATHS EDEXCEL COMPLETE REVISION & PRACTICE: FOUNDATION  (75.23%),Peoples Services Directorate,LAC - Education,F269,
http://opendatacommunities.org/id/london-borough-council/sutton,London Borough of Sutton,20/09/2019,1282592,2.99 , AMAZON.CO.UK MA00O3KZ4,BALANCING ENTRY AMOUNT (24.77%),Peoples Services Directorate,LAC - Education,F269,
http://opendatacommunities.org/id/london-borough-council/sutton,London Borough of Sutton,12/09/2019,1282592,8.65 , AMAZON.CO.UK MA9YC0H14,SPLIT - THE TRUE STORY OF MO SALAH: (48.46%),Peoples Services Directorate,LAC - Education,F269,
http://opendatacommunities.org/id/london-borough-council/sutton,London Borough of Sutton,12/09/2019,1282592,3.21 , AMAZON.CO.UK MA9YC0H14,SPLIT - TIMES TABLES WORKBOOK AGES 5-7: NEW EDITION(17.98%),Peoples Services Directorate,LAC - Education,F269,
http://opendatacommunities.org/id/london-borough-council/sutton,London Borough of Sutton,12/09/2019,1282592,5.99 , AMAZON.CO.UK MA9YC0H14,SPLIT - LIVERPOOL WORD SEARCH FOR KIDS (33.56%),Peoples Services Directorate,LAC - Education,F269,
http://opendatacommunities.org/id/london-borough-council/sutton,London Borough of Sutton,09/09/2019,1282592,1.66 , AMZNMKTPLACE AMAZON.CO,SPLIT - OXFORD HELIX MATHS SET WITH STORAGE TIN (3.49%),Peoples Services Directorate,LAC - Education,F269,
http://opendatacommunities.org/id/london-borough-council/sutton,London Borough of Sutton,09/09/2019,1282592,1.80 , AMZNMKTPLACE AMAZON.CO,"SPLIT - ELBA A4+ 10 PART CARD DIVIDERS, ASSORTED, 1 SET (3.79%)",Peoples Services Directorate,LAC - Education,F269,
http://opendatacommunities.org/id/london-borough-council/sutton,London Borough of Sutton,19/09/2019,1282592,20.00 , OYSTER AUTO-TOP UP,OYSTERCARD TOP UP,"Environment, Housing & Regeneration Directorate",General Office Expenses,F235,
http://opendatacommunities.org/id/london-borough-council/sutton,London Borough of Sutton,14/09/2019,1282592,20.00 , OYSTER AUTO-TOP UP,OYSTERCARD TOP UP,"Environment, Housing & Regeneration Directorate",General Office Expenses,F235,
http://opendatacommunities.org/id/london-borough-council/sutton,London Borough of Sutton,22/09/2019,1282592,20.00 , OYSTER AUTO-TOP UP,OYSTERCARD TOP UP,"Environment, Housing & Regeneration Directorate",General Office Expenses,F235,
http://opendatacommunities.org/id/london-borough-council/sutton,London Borough of Sutton,23/09/2019,1282592,90.00 , SAINSBURYS SACAT 0052,REPLACEMENT MICROWAVE (PARKING/ELECTORAL SERVICES),"Environment, Housing & Regeneration Directorate",Other Equipment - Purchase,F015,
http://opendatacommunities.org/id/london-borough-council/sutton,London Borough of Sutton,29/08/2019,1282592,35.98 , TRAINLINE,TRAIN TO MANCHESTER,Resources Directorate,Travelling and Subsistence Allowances,A530,
http://opendatacommunities.org/id/london-borough-council/sutton,London Borough of Sutton,29/08/2019,1282592,20.96 , TRAINLINE,CONFERENCE TRAIN TO MANCHESTER,Resources Directorate,Travelling and Subsistence Allowances,A530,
http://opendatacommunities.org/id/london-borough-council/sutton,London Borough of Sutton,19/09/2019,1282592,3.47 , B & Q 1191,GARDEN COMPOST,Resources Directorate,General Office Expenses,F235,
http://opendatacommunities.org/id/london-borough-council/sutton,London Borough of Sutton,19/09/2019,1282592,25.65 , EVERGREEN EXTERIOR,GARDEN PLANTS FOR POTS,Resources Directorate,General Office Expenses,F235,
http://opendatacommunities.org/id/london-borough-council/sutton,London Borough of Sutton,19/09/2019,1282592,34.62 , FLORAL IMAGE SUSSEX,SILK FLOWER HIRE,Resources Directorate,General Office Expenses,F235,
http://opendatacommunities.org/id/london-borough-council/sutton,London Borough of Sutton,11/09/2019,1282592,30.83 , LBSUTTON,PERSONAL LICENCE,Resources Directorate,General Office Expenses,F235,
http://opendatacommunities.org/id/london-borough-council/sutton,London Borough of Sutton,25/09/2019,1282592,3.41 , WH SMITH,ENVELOPES,Resources Directorate,General Office Expenses,F235,
http://opendatacommunities.org/id/london-borough-council/sutton,London Borough of Sutton,11/09/2019,1282592,10.91 , TESCO STORE 3235,CITIZENSHIP REFRESHMENTS,Resources Directorate,Hospitality (VAT not Recoverable),F325,
http://opendatacommunities.org/id/london-borough-council/sutton,London Borough of Sutton,19/09/2019,1282592,7.50 , WM MORRISONS STORE,MILK FOR MEETINGS,Resources Directorate,Hospitality (VAT not Recoverable),F325,
http://opendatacommunities.org/id/london-borough-council/sutton,London Borough of Sutton,10/09/2019,1282592,3.67 , WAITROSE 559,MILK AND SUGAR,Resources Directorate,Hospitality (VAT not Recoverable),F325,
http://opendatacommunities.org/id/london-borough-council/sutton,London Borough of Sutton,03/09/2019,1282592,8.32 , SPOTIFY P0C9797242,MUSIC FOR WEDDINGS,Resources Directorate,Subscriptions - General,F450,
http://opendatacommunities.org/id/london-borough-council/sutton,London Borough of Sutton,25/09/2019,1282592,4.19 , PARTY SUPERSTORES,RAFFLE TICKETS FOR CHARITY EVENT,Resources Directorate,Miscellaneous Expenses,F620,
http://opendatacommunities.org/id/london-borough-council/sutton,London Borough of Sutton,05/09/2019,1282592,17.50 , LBSUTTON,TEMPORARY EVENTS LICENSE FOR CHARITY AFTERNOON TEA,Resources Directorate,Miscellaneous Expenses,F620,
http://opendatacommunities.org/id/london-borough-council/sutton,London Borough of Sutton,30/08/2019,1282592,20.00 , OYSTER AUTO-TOP UP,OYSTERCARD TOP UP,"Environment, Housing & Regeneration Directorate",General Office Expenses,F235,
http://opendatacommunities.org/id/london-borough-council/sutton,London Borough of Sutton,19/09/2019,1282592,20.00 , OYSTER AUTO-TOP UP,OYSTERCARD TOP UP,HRA,General Office Expenses,F235,
http://opendatacommunities.org/id/london-borough-council/sutton,London Borough of Sutton,15/09/2019,1282592,20.00 , OYSTER AUTO-TOP UP,OYSTERCARD TOP UP,HRA,General Office Expenses,F235,
http://opendatacommunities.org/id/london-borough-council/sutton,London Borough of Sutton,20/09/2019,1282592,20.00 , OYSTER AUTO-TOP UP,OYSTERCARD TOP UP,"Environment, Housing & Regeneration Directorate",General Office Expenses,F235,
http://opendatacommunities.org/id/london-borough-council/sutton,London Borough of Sutton,06/09/2019,1282592,20.00 , OYSTER AUTO-TOP UP,OYSTERCARD TOP UP,"Environment, Housing & Regeneration Directorate",General Office Expenses,F235,
http://opendatacommunities.org/id/london-borough-council/sutton,London Borough of Sutton,24/09/2019,1282592,95.42 , TRAVELODGE,TRAVELODGE RAYNES PARK,"Environment, Housing & Regeneration Directorate",Bed and Breakfast Accommodation,G400,
http://opendatacommunities.org/id/london-borough-council/sutton,London Borough of Sutton,24/09/2019,1282592,88.12 , TRAVELODGE,TRAVELODGE RAYNES PARK,"Environment, Housing & Regeneration Directorate",Bed and Breakfast Accommodation,G400,
http://opendatacommunities.org/id/london-borough-council/sutton,London Borough of Sutton,24/09/2019,1282592,(85.62), TRAVELODGE,TRAVELODGE RAYNES PARK,"Environment, Housing & Regeneration Directorate",Bed and Breakfast Accommodation,G400,
http://opendatacommunities.org/id/london-borough-council/sutton,London Borough of Sutton,13/09/2019,1282592,860.83 , TRAVELODGE,TRAVELODGE RAYNES PARK,"Environment, Housing & Regeneration Directorate",Bed and Breakfast Accommodation,G400,
http://opendatacommunities.org/id/london-borough-council/sutton,London Borough of Sutton,11/09/2019,1282592,172.92 , SOFITEL LONDON GATWICK,SOFITEL GATWICK 1 NT,"Environment, Housing & Regeneration Directorate",Bed and Breakfast Accommodation,G400,
http://opendatacommunities.org/id/london-borough-council/sutton,London Borough of Sutton,10/09/2019,1282592,32.50 , TRAVELODGE,TRAVELODGE CHESSINGTON 1 NT,"Environment, Housing & Regeneration Directorate",Bed and Breakfast Accommodation,G400,
http://opendatacommunities.org/id/london-borough-council/sutton,London Borough of Sutton,10/09/2019,1282592,(32.50), TRAVELODGE,TRAVELODGE CHESSINGTON 1 NIGHT,"Environment, Housing & Regeneration Directorate",Bed and Breakfast Accommodation,G400,
http://opendatacommunities.org/id/london-borough-council/sutton,London Borough of Sutton,30/08/2019,1282592,20.00 , OYSTER AUTO-TOP UP,TEAM OYSTER,Chief Executive's Directorate,Travelling and Subsistence Allowances,A530,
http://opendatacommunities.org/id/london-borough-council/sutton,London Borough of Sutton,23/09/2019,1282592,59.17 , HOTEL IBIS,OVERNIGHT STAY BU UNIVERSITY S BREEZE,Chief Executive's Directorate,Travelling and Subsistence Allowances,A530,
http://opendatacommunities.org/id/london-borough-council/sutton,London Borough of Sutton,23/09/2019,1282592,113.40 , WEST COAST TRAINS,TRAIN EUSTON TO B'HAM RETURN S BARKER AND S BREEZE,Chief Executive's Directorate,Travelling and Subsistence Allowances,A530,
http://opendatacommunities.org/id/london-borough-council/sutton,London Borough of Sutton,22/09/2019,1282592,20.00 , OYSTER AUTO-TOP UP,TEAM OYSTER,Chief Executive's Directorate,Travelling and Subsistence Allowances,A530,
http://opendatacommunities.org/id/london-borough-council/sutton,London Borough of Sutton,15/09/2019,1282592,20.00 , OYSTER AUTO-TOP UP,TEAM OYSTER,Chief Executive's Directorate,Travelling and Subsistence Allowances,A530,
http://opendatacommunities.org/id/london-borough-council/sutton,London Borough of Sutton,05/09/2019,1282592,24.00 , H2OPUBLISHIN-F149E14T1,EVENT,Chief Executive's Directorate,Travelling and Subsistence Allowances,A530,
http://opendatacommunities.org/id/london-borough-council/sutton,London Borough of Sutton,31/08/2019,1282592,20.00 , OYSTER AUTO-TOP UP,TEAM OYSTER,Chief Executive's Directorate,Travelling and Subsistence Allowances,A530,
http://opendatacommunities.org/id/london-borough-council/sutton,London Borough of Sutton,06/09/2019,1282592,187.00 , WWW.CIPS.ORG,PROF MEMBERSHIP,Chief Executive's Directorate,General Office Expenses,F235,
http://opendatacommunities.org/id/london-borough-council/sutton,London Borough of Sutton,16/09/2019,1282592,4.35 , MAILCHIMP    MONTHLY,WEB HOSTING,Chief Executive's Directorate,Fees - Computer Software,F384,
http://opendatacommunities.org/id/london-borough-council/sutton,London Borough of Sutton,14/09/2019,1282592,158.16 , MAILCHIMP    MONTHLY,WEB HOSTING,Chief Executive's Directorate,Fees - Computer Software,F384,
http://opendatacommunities.org/id/london-borough-council/sutton,London Borough of Sutton,09/09/2019,1282592,99.00 , HOLIDAY INN BRISTO,ACCOMMODATION BOOKING,Resources Directorate,Travelling and Subsistence Allowances,A530,
http://opendatacommunities.org/id/london-borough-council/sutton,London Borough of Sutton,11/09/2019,1282592,75.00 , SOUNDCLOUD,ANNUAL SUBSCRIPTION FOR COMMITTEE SERVICES,Resources Directorate,Fees - Computer Software,F384,
http://opendatacommunities.org/id/london-borough-council/sutton,London Borough of Sutton,05/09/2019,1282592,23.00 , MINICABIT,TRAVEL,Resources Directorate,Travelling and Subsistence Allowances,A530,
http://opendatacommunities.org/id/london-borough-council/sutton,London Borough of Sutton,15/09/2019,1282592,20.00 , OYSTER AUTO-TOP UP,OYSTER TOP UP,Resources Directorate,Travelling and Subsistence Allowances,A530,
http://opendatacommunities.org/id/london-borough-council/sutton,London Borough of Sutton,26/09/2019,1282592,8.83 , AMZNMKTPLACE,SPLIT - KEYBOARD  (70.25%),Resources Directorate,First Aid and Medical Requisites,F105,
http://opendatacommunities.org/id/london-borough-council/sutton,London Borough of Sutton,26/09/2019,1282592,3.74 , AMZNMKTPLACE,BALANCING ENTRY AMOUNT (29.75%),Resources Directorate,First Aid and Medical Requisites,F105,
http://opendatacommunities.org/id/london-borough-council/sutton,London Borough of Sutton,10/09/2019,1282592,13.99 , FACEBK S7ARMP2BL2,SPLIT - FACEBOOK DOMESTIC ABUSE (41.59%),Chief Executive's Directorate,Printing - General,F215,
http://opendatacommunities.org/id/london-borough-council/sutton,London Borough of Sutton,05/09/2019,1282592,181.44 , GOOGLE  ADS8517410550,GOOGLE NEST PURCHASEDR,Chief Executive's Directorate,Corporate Publicity,F356,
http://opendatacommunities.org/id/london-borough-council/sutton,London Borough of Sutton,30/08/2019,1282592,89.00 , ARGOS LTD,GOOGLE NEST PURCHASED BY EVOLVE TEAM FOR THE DIGITAL EVENT IN KINGSTON,Resources Directorate,General Office Expenses,F235,
http://opendatacommunities.org/id/london-borough-council/sutton,London Borough of Sutton,27/08/2019,1282592,309.12 , CRESTREGALIA.COM,MAYORAL REPLICA CHAINS,Resources Directorate,Mayor's Allowance,F407,
http://opendatacommunities.org/id/london-borough-council/sutton,London Borough of Sutton,25/09/2019,1282592,31.49 , TRAINLINE,TRAIN TICKETS FOR CLLR.,Resources Directorate,Members Expenses - Travel and Subsistence,F401,
http://opendatacommunities.org/id/london-borough-council/sutton,London Borough of Sutton,30/08/2019,1282592,117.14 , TRAINLINE.COM,TRAIN TICKETS FOR LP AND TC TO OXFORD SOCIAL OUTCOMES CONFERENCE,Chief Executive's Directorate,Travelling and Subsistence Allowances,A530,
http://opendatacommunities.org/id/london-borough-council/sutton,London Borough of Sutton,21/09/2019,1282592,9.83 , AMZNMKTPLACE,MARSHMALLOWS AND STICKS FOR CELEBRATING SUCCESS EVENT,Chief Executive's Directorate,Other Equipment - Purchase,F015,
http://opendatacommunities.org/id/london-borough-council/sutton,London Borough of Sutton,24/09/2019,1282592,69.00 , VIRGIN TRAINS,TRAIN TRAVEL,Chief Executive's Directorate,Corporate Publicity,F356,
http://opendatacommunities.org/id/london-borough-council/sutton,London Borough of Sutton,23/09/2019,1282592,123.52 , FACEBK TJ6SMNWAL2,FACEBOOK ADVERTISING DA 107.69,Chief Executive's Directorate,Corporate Publicity,F356,
http://opendatacommunities.org/id/london-borough-council/sutton,London Borough of Sutton,17/09/2019,1282592,104.17 , FACEBK AR2DXNSAL2,FACEBOOK DA 66.91 / AWARDS 4.11 / CULTURE 53.98,Chief Executive's Directorate,Corporate Publicity,F356,
http://opendatacommunities.org/id/london-borough-council/sutton,London Borough of Sutton,14/09/2019,1282592,75.00 , FACEBK 4Y4TPP2BL2,FACEBOOK - DA 51.61 / CULTURE 35.21 / CULTURE 3.18,Chief Executive's Directorate,Corporate Publicity,F356,
http://opendatacommunities.org/id/london-borough-council/sutton,London Borough of Sutton,14/09/2019,1282592,50.00 , FACEBK FTCLBN24V2,FACEBOOK ADVERTISING COMMUNITY AWARDS,Chief Executive's Directorate,Corporate Publicity,F356,
http://opendatacommunities.org/id/london-borough-council/sutton,London Borough of Sutton,12/09/2019,1282592,33.52 , FACEBK 2W8MSN63V2,COMMUNITY AWARDS FACEBOOK ADVERTISING,Chief Executive's Directorate,Corporate Publicity,F356,
http://opendatacommunities.org/id/london-borough-council/sutton,London Borough of Sutton,11/09/2019,1282592,50.00 , FACEBK DDQRUNSAL2,FACEBOOK ADVERTISING NEEDS SPLITTING,Chief Executive's Directorate,Corporate Publicity,F356,
http://opendatacommunities.org/id/london-borough-council/sutton,London Borough of Sutton,10/09/2019,1282592,1.39 , FACEBK S7ARMP2BL2,SPLIT - FACEBOOK COMMUNITY AWARDS (4.14%),Chief Executive's Directorate,Corporate Publicity,F356,
http://opendatacommunities.org/id/london-borough-council/sutton,London Borough of Sutton,10/09/2019,1282592,18.26 , FACEBK S7ARMP2BL2,SPLIT - FACEBOOK CULTURE BID (54.27%),Chief Executive's Directorate,Corporate Publicity,F356,
http://opendatacommunities.org/id/london-borough-council/sutton,London Borough of Sutton,08/09/2019,1282592,33.64 , FACEBK C5WZLP2BL2,CULTURE : 36.56 / AWARDS : 3.81 FACEBOOK ADVERTISING,Chief Executive's Directorate,Corporate Publicity,F356,
http://opendatacommunities.org/id/london-borough-council/sutton,London Borough of Sutton,11/07/2019,1282592,19.20 , SCREENCASTIFY PREMIUM,FRAUDULENT ACTIVITY,Chief Executive's Directorate,Miscellaneous Expenses,F620,
http://opendatacommunities.org/id/london-borough-council/sutton,London Borough of Sutton,09/09/2019,1282592,74.03 , ST DUNSTAN HILL SERVIC,REST CENTRE SUPPLIES (HAMPTONS FIRE),"Environment, Housing & Regeneration Directorate",General Office Expenses,F235,
http://opendatacommunities.org/id/london-borough-council/sutton,London Borough of Sutton,24/09/2019,1282592,46.62 , WWW.PARTYDELIGHTS.CO.U,DISPOSABLE HELIUM (HATE CRIME EVENT),"Environment, Housing & Regeneration Directorate",Other Equipment - Purchase,F015,
http://opendatacommunities.org/id/london-borough-council/sutton,London Borough of Sutton,07/09/2019,1282592,23.25 , GOOGLE  GOOGLE PLAY AP,BALANCING ENTRY AMOUNT (100%),"Environment, Housing & Regeneration Directorate",Subscriptions - General,F450,
http://opendatacommunities.org/id/london-borough-council/sutton,London Borough of Sutton,19/09/2019,1282592,239.99 , WWW.ARGOS.CO.UK,PURCHASE OF GOODS FOR CRISIS LOAN AND GRANT SCHEME,Resources Directorate,Grants,F473,
http://opendatacommunities.org/id/london-borough-council/sutton,London Borough of Sutton,02/09/2019,1282592,72.94 , WWW.ARGOS.CO.UK,PURCHASE OF GOODS FOR CRISIS LOAN AND GRANT SCHEME,Resources Directorate,Grants,F473,
http://opendatacommunities.org/id/london-borough-council/sutton,London Borough of Sutton,09/09/2019,1282592,565.93 , WWW.ARGOS.CO.UK,CL&G,Resources Directorate,Grants,F473,
http://opendatacommunities.org/id/london-borough-council/sutton,London Borough of Sutton,09/09/2019,1282592,409.98 , WWW.ARGOS.CO.UK,CL&G,Resources Directorate,Grants,F473,
http://opendatacommunities.org/id/london-borough-council/sutton,London Borough of Sutton,09/09/2019,1282592,375.94 , WWW.ARGOS.CO.UK,CL&G,Resources Directorate,Grants,F473,
http://opendatacommunities.org/id/london-borough-council/sutton,London Borough of Sutton,10/09/2019,1282592,1.50 , WWW.GOV.UK,PROBATE SEARCH 1 SEARCH FOR SOCIAL SERVICES FINANCIAL ASSESSMENTS,Resources Directorate,General Office Expenses,F235,
http://opendatacommunities.org/id/london-borough-council/sutton,London Borough of Sutton,23/09/2019,1282592,115.79 , WWW.IDCARDSDIRECT.COM,115.79 - H301 6405 9999 - IDCARDSDIRECT,Peoples Services Directorate,Client Care/Assistance,H301,
http://opendatacommunities.org/id/london-borough-council/sutton,London Borough of Sutton,18/09/2019,1282592,153.00 , BRITISHPSYCHOLOGICALSO,.153.00 - A520 6417 9999 - TRAINING FOR CLINICAL HEALTH TEAM.PNG,Peoples Services Directorate,Training - Course Fees,A520,
http://opendatacommunities.org/id/london-borough-council/sutton,London Borough of Sutton,02/09/2019,1282592,397.94 , WWW.ARGOS.CO.UK,397.94 - F080 6452 9999,Peoples Services Directorate,Furniture - Purchase,F080,
http://opendatacommunities.org/id/london-borough-council/sutton,London Borough of Sutton,23/09/2019,1282592,34.80 , STK SHUTTERSTOCK,34.80 - F150 6476 9999 - SHUTTERSTOCK,Peoples Services Directorate,Provisions - General,F150,
http://opendatacommunities.org/id/london-borough-council/sutton,London Borough of Sutton,31/08/2019,1282592,40.00 , OYSTER AUTO-TOP UP,OYSTER TOP UP,Peoples Services Directorate,Fees - Room Hire,F290,
http://opendatacommunities.org/id/london-borough-council/sutton,London Borough of Sutton,29/08/2019,1282592,190.00 , MBPLC.COM,BROWNS CONFERENCE ROOM PLUS REFRESHMENTS 29.11.19,Peoples Services Directorate,Fees - Room Hire,F290,
